[Event "*** Titled Tuesday Blitz"]
[Site "Chess.com"]
[Date "2021.02.09"]
[Round "1"]
[White "Gabrielian_Artur"]
[Black "Chessbard1972"]
[Result "1-0"]
[WhiteElo "2790"]
[BlackElo "2405"]
[TimeControl "180+1"]
[EndTime "10:05:46 PST"]
[Termination "Gabrielian_Artur won by resignation"]

1. c4 {[%clk 0:03:00.9]} 1... Nf6 {[%clk 0:02:58.6]} 2. Nc3 {[%clk 0:02:59.1]}
2... g6 {[%clk 0:02:57.7]} 3. g3 {[%clk 0:02:56.5]} 3... Bg7 {[%clk 0:02:56.4]}
4. Bg2 {[%clk 0:02:56.9]} 4... O-O {[%clk 0:02:56]} 5. e4 {[%clk 0:02:55.2]}
5... d6 {[%clk 0:02:55.8]} 6. Nge2 {[%clk 0:02:53.3]} 6... c5 {[%clk 0:02:54.6]}
7. d3 {[%clk 0:02:53.3]} 7... Nc6 {[%clk 0:02:53.8]} 8. O-O {[%clk 0:02:53.3]}
8... e5 {[%clk 0:02:53.4]} 9. h3 {[%clk 0:02:50.4]} 9... Ne8 {[%clk 0:02:51.8]}
10. f4 {[%clk 0:02:46]} 10... f5 {[%clk 0:02:51.4]} 11. Be3 {[%clk 0:02:40.7]}
11... Nd4 {[%clk 0:02:48.9]} 12. Qd2 {[%clk 0:02:37.1]} 12... Rb8 {[%clk
0:02:42.2]} 13. Rf2 {[%clk 0:02:23]} 13... Be6 {[%clk 0:02:40.3]} 14. Raf1
{[%clk 0:02:21.7]} 14... Qd7 {[%clk 0:02:38.5]} 15. fxe5 {[%clk 0:02:19.2]}
15... dxe5 {[%clk 0:02:37.9]} 16. exf5 {[%clk 0:02:16.8]} 16... gxf5 {[%clk
0:02:37.1]} 17. Bh6 {[%clk 0:02:15.5]} 17... Kh8 {[%clk 0:02:26.4]} 18. Nxd4
{[%clk 0:02:10]} 18... cxd4 {[%clk 0:02:25.1]} 19. Nd5 {[%clk 0:02:09.6]} 19...
Nc7 {[%clk 0:02:20.1]} 20. Nxc7 {[%clk 0:02:06.7]} 20... Qxc7 {[%clk 0:02:19.1]}
21. Kh2 {[%clk 0:02:01.9]} 21... Rf6 {[%clk 0:02:13.1]} 22. Bxg7+ {[%clk
0:01:59.2]} 22... Qxg7 {[%clk 0:02:11.1]} 23. Qa5 {[%clk 0:01:43.6]} 23... Rg6
{[%clk 0:02:07.8]} 24. Re1 {[%clk 0:01:30.3]} 24... e4 {[%clk 0:01:43.7]} 25.
dxe4 {[%clk 0:01:27.4]} 25... Rxg3 {[%clk 0:01:37.4]} 26. exf5 {[%clk
0:01:21.5]} 26... Bxc4 {[%clk 0:01:36.7]} 27. f6 {[%clk 0:01:11]} 27... Qg6
{[%clk 0:01:05]} 28. Qe5 {[%clk 0:00:59.3]} 28... Rg8 {[%clk 0:00:41.5]} 29. f7+
{[%clk 0:00:57.9]} 29... Qg7 {[%clk 0:00:40.3]} 30. fxg8=Q+ {[%clk 0:00:53.9]}
1-0

[Event "*** Titled Tuesday Blitz"]
[Site "Chess.com"]
[Date "2021.02.09"]
[Round "1"]
[White "GregShahade"]
[Black "davigator"]
[Result "1-0"]
[WhiteElo "2680"]
[BlackElo "2353"]
[TimeControl "180+1"]
[EndTime "10:05:46 PST"]
[Termination "GregShahade won by resignation"]

1. e4 {[%clk 0:03:00.3]} 1... c5 {[%clk 0:02:58.6]} 2. Nf3 {[%clk 0:02:59.9]}
2... Nc6 {[%clk 0:02:58]} 3. d4 {[%clk 0:02:59.8]} 3... cxd4 {[%clk 0:02:57.9]}
4. Nxd4 {[%clk 0:03:00.7]} 4... Nf6 {[%clk 0:02:57.5]} 5. Nc3 {[%clk 0:03:00.9]}
5... d6 {[%clk 0:02:57.5]} 6. f3 {[%clk 0:03:00.1]} 6... e5 {[%clk 0:02:56.4]}
7. Nb3 {[%clk 0:03:00.4]} 7... Be7 {[%clk 0:02:56.7]} 8. Be3 {[%clk 0:03:00.5]}
8... Be6 {[%clk 0:02:57]} 9. Nd5 {[%clk 0:02:53.6]} 9... Bxd5 {[%clk 0:02:56.3]}
10. exd5 {[%clk 0:02:53.7]} 10... Nb8 {[%clk 0:02:56.7]} 11. Qd2 {[%clk
0:02:53.8]} 11... O-O {[%clk 0:02:56.5]} 12. g4 {[%clk 0:02:53.9]} 12... Nbd7
{[%clk 0:02:52.2]} 13. g5 {[%clk 0:02:52.2]} 13... Nh5 {[%clk 0:02:51.4]} 14.
O-O-O {[%clk 0:02:52.8]} 14... a5 {[%clk 0:02:48.2]} 15. a4 {[%clk 0:02:46.7]}
15... Nb6 {[%clk 0:02:45.5]} 16. Bb5 {[%clk 0:02:43.8]} 16... Nf4 {[%clk
0:02:40.5]} 17. Bxf4 {[%clk 0:02:28.8]} 17... exf4 {[%clk 0:02:40]} 18. h4
{[%clk 0:02:29.1]} 18... f6 {[%clk 0:02:32.8]} 19. g6 {[%clk 0:02:22.7]} 19...
hxg6 {[%clk 0:02:30.9]} 20. Qxf4 {[%clk 0:02:20.2]} 20... Nd7 {[%clk 0:02:28.3]}
21. Qg4 {[%clk 0:01:56.6]} 21... Ne5 {[%clk 0:02:27.9]} 22. Qe6+ {[%clk
0:01:56.9]} 22... Kh7 {[%clk 0:02:10.2]} 23. f4 {[%clk 0:01:45.2]} 23... Nf7
{[%clk 0:02:06.2]} 24. Rhe1 {[%clk 0:01:42.2]} 24... Rc8 {[%clk 0:01:45.1]} 25.
Qxe7 {[%clk 0:01:33.9]} 25... Qb6 {[%clk 0:01:45]} 26. Qe3 {[%clk 0:01:32.4]}
26... Qc7 {[%clk 0:01:43.8]} 27. c3 {[%clk 0:01:28.4]} 27... Nh6 {[%clk
0:01:42.4]} 28. Bd3 {[%clk 0:01:21.7]} 28... f5 {[%clk 0:01:41.2]} 29. Rg1
{[%clk 0:01:08.4]} 29... Ng4 {[%clk 0:01:40.3]} 30. Rxg4 {[%clk 0:01:07.3]}
30... fxg4 {[%clk 0:01:41.2]} 31. h5 {[%clk 0:01:03]} 31... Rf6 {[%clk
0:01:29.9]} 32. hxg6+ {[%clk 0:01:02.7]} 32... Kg8 {[%clk 0:01:28.5]} 33. Nd4
{[%clk 0:00:56.6]} 33... Qd7 {[%clk 0:01:26.9]} 34. Bb5 {[%clk 0:00:48.7]} 34...
Qd8 {[%clk 0:01:19.9]} 35. f5 {[%clk 0:00:46.3]} 35... Rc7 {[%clk 0:01:16.7]}
36. Re1 {[%clk 0:00:42.8]} 1-0

[Event "*** Titled Tuesday Blitz"]
[Site "Chess.com"]
[Date "2021.02.09"]
[Round "1"]
[White "Indianlad"]
[Black "bsnsun"]
[Result "1-0"]
[WhiteElo "2918"]
[BlackElo "2453"]
[TimeControl "180+1"]
[EndTime "10:05:48 PST"]
[Termination "Indianlad won by resignation"]

1. Nf3 {[%clk 0:03:00.9]} 1... d5 {[%clk 0:02:58.5]} 2. e3 {[%clk 0:02:59.6]}
2... Nf6 {[%clk 0:02:57.8]} 3. c4 {[%clk 0:03:00.2]} 3... dxc4 {[%clk
0:02:57.7]} 4. Bxc4 {[%clk 0:02:59.9]} 4... e6 {[%clk 0:02:57.8]} 5. b3 {[%clk
0:02:59.7]} 5... c5 {[%clk 0:02:57.3]} 6. Bb2 {[%clk 0:02:59.5]} 6... Be7 {[%clk
0:02:57.7]} 7. O-O {[%clk 0:02:59.6]} 7... a6 {[%clk 0:02:57.4]} 8. d4 {[%clk
0:02:59.6]} 8... O-O {[%clk 0:02:57.3]} 9. dxc5 {[%clk 0:02:59.2]} 9... Bxc5
{[%clk 0:02:56.9]} 10. Nc3 {[%clk 0:02:52.9]} 10... Nbd7 {[%clk 0:02:53]} 11.
Rc1 {[%clk 0:02:51.8]} 11... b5 {[%clk 0:02:52.8]} 12. Be2 {[%clk 0:02:50.3]}
12... Bb7 {[%clk 0:02:53.2]} 13. a4 {[%clk 0:02:48.7]} 13... b4 {[%clk
0:02:46.3]} 14. Nb1 {[%clk 0:02:48.7]} 14... Rc8 {[%clk 0:02:35.9]} 15. Nbd2
{[%clk 0:02:46.6]} 15... Nd5 {[%clk 0:02:36]} 16. Nc4 {[%clk 0:02:46.6]} 16...
N7f6 {[%clk 0:02:33.2]} 17. Nfd2 {[%clk 0:02:41.7]} 17... Qe7 {[%clk 0:02:31.5]}
18. Bf3 {[%clk 0:02:40.4]} 18... Rfd8 {[%clk 0:02:30.1]} 19. Qe2 {[%clk
0:02:41]} 19... Ba7 {[%clk 0:02:00.8]} 20. Na5 {[%clk 0:02:38.4]} 20... Ba8
{[%clk 0:01:50.4]} 21. Rxc8 {[%clk 0:02:34]} 21... Rxc8 {[%clk 0:01:50.3]} 22.
Qxa6 {[%clk 0:02:34.4]} 22... Rc2 {[%clk 0:01:47.9]} 23. Ndc4 {[%clk 0:02:33.4]}
23... h5 {[%clk 0:01:12.3]} 24. Bxf6 {[%clk 0:02:30.5]} 24... gxf6 {[%clk
0:01:08.3]} 25. Nc6 {[%clk 0:02:26.5]} 25... Bxc6 {[%clk 0:01:06.1]} 26. Qxc6
{[%clk 0:02:27.4]} 26... f5 {[%clk 0:00:56.2]} 27. Bxd5 {[%clk 0:02:26]} 27...
exd5 {[%clk 0:00:56.1]} 28. Qxd5 {[%clk 0:02:26.6]} 28... Bb8 {[%clk 0:00:40]}
29. Qxf5 {[%clk 0:02:24.1]} 29... Rc3 {[%clk 0:00:35.1]} 30. Qc8+ {[%clk
0:02:16.8]} 30... Qf8 {[%clk 0:00:35.3]} 31. Qxf8+ {[%clk 0:02:17]} 31... Kxf8
{[%clk 0:00:36.2]} 32. Rb1 {[%clk 0:02:17.1]} 32... Ke7 {[%clk 0:00:35.1]} 33.
g3 {[%clk 0:02:17.3]} 33... Ke6 {[%clk 0:00:35.2]} 34. Kg2 {[%clk 0:02:17.2]}
34... Kd5 {[%clk 0:00:35.4]} 35. Kf3 {[%clk 0:02:17.8]} 35... f5 {[%clk
0:00:34.3]} 36. a5 {[%clk 0:02:16.1]} 36... Kc5 {[%clk 0:00:32.5]} 37. h3 {[%clk
0:02:10.8]} 37... Kb5 {[%clk 0:00:32.2]} 38. g4 {[%clk 0:02:10.7]} 38... hxg4+
{[%clk 0:00:32.3]} 39. hxg4 {[%clk 0:02:11.6]} 39... fxg4+ {[%clk 0:00:32.9]}
40. Kxg4 {[%clk 0:02:11.8]} 40... Rc2 {[%clk 0:00:28.3]} 41. f4 {[%clk
0:02:11.9]} 41... Rg2+ {[%clk 0:00:28.6]} 42. Kf3 {[%clk 0:02:11.7]} 42... Rh2
{[%clk 0:00:26.5]} 43. Ke4 {[%clk 0:02:11.9]} 43... Rh3 {[%clk 0:00:25.3]} 44.
f5 {[%clk 0:02:12]} 44... Rh4+ {[%clk 0:00:25.4]} 45. Kd5 {[%clk 0:02:12.2]}
45... Rh5 {[%clk 0:00:20.9]} 46. e4 {[%clk 0:02:12.4]} 46... Rh8 {[%clk
0:00:21.2]} 47. f6 {[%clk 0:02:11.8]} 47... Rd8+ {[%clk 0:00:21.1]} 48. Ke6
{[%clk 0:02:12]} 48... Re8+ {[%clk 0:00:21.6]} 49. Kf5 {[%clk 0:02:12.3]} 49...
Bg3 {[%clk 0:00:19.6]} 50. e5 {[%clk 0:02:11.3]} 50... Bxe5 {[%clk 0:00:17.9]}
51. Nxe5 {[%clk 0:02:11]} 51... Kxa5 {[%clk 0:00:18.8]} 52. f7 {[%clk
0:02:10.9]} 52... Rf8 {[%clk 0:00:18.8]} 53. Ke6 {[%clk 0:02:10.9]} 1-0

[Event "*** Titled Tuesday Blitz"]
[Site "Chess.com"]
[Date "2021.02.09"]
[Round "1"]
[White "MasterMK73"]
[Black "Anna_ChessMate"]
[Result "0-1"]
[WhiteElo "2232"]
[BlackElo "2549"]
[TimeControl "180+1"]
[EndTime "10:05:48 PST"]
[Termination "Anna_ChessMate won by resignation"]

1. e4 {[%clk 0:02:59.5]} 1... c6 {[%clk 0:02:59.3]} 2. d4 {[%clk 0:02:58.5]}
2... d5 {[%clk 0:02:59.1]} 3. e5 {[%clk 0:02:56.6]} 3... c5 {[%clk 0:02:57.9]}
4. dxc5 {[%clk 0:02:54.8]} 4... e6 {[%clk 0:02:56.1]} 5. Be3 {[%clk 0:02:53]}
5... Qc7 {[%clk 0:02:54.1]} 6. Nf3 {[%clk 0:02:41.8]} 6... Bxc5 {[%clk 0:02:52]}
7. Bb5+ {[%clk 0:02:37]} 7... Bd7 {[%clk 0:02:51.3]} 8. Bxd7+ {[%clk 0:02:35.1]}
8... Nxd7 {[%clk 0:02:52.2]} 9. Bxc5 {[%clk 0:02:34.8]} 9... Nxc5 {[%clk
0:02:50.6]} 10. O-O {[%clk 0:02:33.3]} 10... Ne7 {[%clk 0:02:51.1]} 11. c3
{[%clk 0:02:26.8]} 11... O-O {[%clk 0:02:48.6]} 12. Nbd2 {[%clk 0:02:25.8]}
12... Nd3 {[%clk 0:02:45.5]} 13. Qe2 {[%clk 0:02:14.4]} 13... Nxb2 {[%clk
0:02:45.3]} 14. Rab1 {[%clk 0:02:14]} 14... Na4 {[%clk 0:02:44.8]} 15. Rfc1
{[%clk 0:02:13.1]} 15... Nxc3 {[%clk 0:02:32.5]} 16. Rxc3 {[%clk 0:01:49.1]}
16... Qxc3 {[%clk 0:02:31.5]} 17. Rxb7 {[%clk 0:01:49.5]} 17... Qc1+ {[%clk
0:02:24.2]} 18. Nf1 {[%clk 0:01:47.1]} 18... Ng6 {[%clk 0:02:23]} 19. g3 {[%clk
0:01:45.7]} 19... Rfb8 {[%clk 0:02:18]} 20. Qb5 {[%clk 0:01:19.3]} 20... Rxb7
{[%clk 0:02:14.9]} 21. Qxb7 {[%clk 0:01:19.1]} 21... Qc8 {[%clk 0:02:15.8]} 22.
Qb2 {[%clk 0:01:12.6]} 22... h6 {[%clk 0:02:15.4]} 23. h4 {[%clk 0:01:11.6]}
23... Rb8 {[%clk 0:02:14.2]} 24. Qd2 {[%clk 0:01:09.7]} 24... Qc4 {[%clk
0:02:08.9]} 25. h5 {[%clk 0:01:01.2]} 25... Rb1 {[%clk 0:02:00.4]} 26. Nh2
{[%clk 0:00:51.6]} 26... Nxe5 {[%clk 0:01:59.2]} 27. Kg2 {[%clk 0:00:46.4]}
27... Qe4+ {[%clk 0:01:52.6]} 28. f3 {[%clk 0:00:44.6]} 28... Qe1 {[%clk
0:01:44.8]} 29. Qd4 {[%clk 0:00:38.5]} 29... Qe2+ {[%clk 0:01:28]} 30. Qf2
{[%clk 0:00:32.5]} 30... Qxf2+ {[%clk 0:01:28.2]} 31. Kxf2 {[%clk 0:00:32.5]}
31... Rb2+ {[%clk 0:01:29.1]} 32. Ke3 {[%clk 0:00:31.7]} 32... Nc4+ {[%clk
0:01:28.9]} 33. Kd3 {[%clk 0:00:27.6]} 33... Rxa2 {[%clk 0:01:29.8]} 34. Ng4
{[%clk 0:00:27.5]} 34... a5 {[%clk 0:01:28.5]} 35. Nge3 {[%clk 0:00:25.8]} 35...
Nxe3 {[%clk 0:01:26.8]} 36. Nxe3 {[%clk 0:00:25.5]} 36... a4 {[%clk 0:01:27.7]}
0-1

[Event "*** Titled Tuesday Blitz"]
[Site "Chess.com"]
[Date "2021.02.09"]
[Round "1"]
[White "RobertoJBM"]
[Black "ukchessbomber"]
[Result "0-1"]
[WhiteElo "2719"]
[BlackElo "2403"]
[TimeControl "180+1"]
[EndTime "10:05:50 PST"]
[Termination "ukchessbomber won on time"]

1. d4 {[%clk 0:03:00.8]} 1... Nf6 {[%clk 0:02:56.9]} 2. e3 {[%clk 0:03:01.7]}
2... g6 {[%clk 0:02:55.9]} 3. Nf3 {[%clk 0:03:02.6]} 3... Bg7 {[%clk 0:02:56.1]}
4. Be2 {[%clk 0:03:03]} 4... O-O {[%clk 0:02:56.4]} 5. O-O {[%clk 0:03:03.9]}
5... d6 {[%clk 0:02:56.5]} 6. c4 {[%clk 0:03:04]} 6... Nbd7 {[%clk 0:02:56.5]}
7. Nc3 {[%clk 0:03:04.9]} 7... e5 {[%clk 0:02:56.6]} 8. Qc2 {[%clk 0:03:05.4]}
8... c6 {[%clk 0:02:55.2]} 9. Rd1 {[%clk 0:03:05]} 9... Qc7 {[%clk 0:02:55.4]}
10. b4 {[%clk 0:03:04.6]} 10... b6 {[%clk 0:02:52.1]} 11. a4 {[%clk 0:03:01.8]}
11... a5 {[%clk 0:02:51.2]} 12. b5 {[%clk 0:03:00.4]} 12... c5 {[%clk
0:02:51.1]} 13. d5 {[%clk 0:02:47.6]} 13... Re8 {[%clk 0:02:47.9]} 14. e4 {[%clk
0:02:47.6]} 14... Nh5 {[%clk 0:02:45.1]} 15. g3 {[%clk 0:02:47.7]} 15... Ndf6
{[%clk 0:02:34.6]} 16. Nh4 {[%clk 0:02:43.8]} 16... h6 {[%clk 0:02:31.6]} 17. f3
{[%clk 0:02:41.3]} 17... Nh7 {[%clk 0:02:28]} 18. Be3 {[%clk 0:02:37.3]} 18...
Ng5 {[%clk 0:02:26]} 19. Ng2 {[%clk 0:02:33.2]} 19... f5 {[%clk 0:02:20.7]} 20.
Rf1 {[%clk 0:01:43.3]} 20... f4 {[%clk 0:02:15.5]} 21. gxf4 {[%clk 0:01:15.7]}
21... exf4 {[%clk 0:02:16.4]} 22. Bf2 {[%clk 0:01:12.6]} 22... Nh3+ {[%clk
0:01:57.6]} 23. Kh1 {[%clk 0:01:12.9]} 23... Nxf2+ {[%clk 0:01:58.5]} 24. Rxf2
{[%clk 0:01:13.7]} 24... Bd4 {[%clk 0:01:59]} 25. Rff1 {[%clk 0:01:12.1]} 25...
Bh3 {[%clk 0:01:55.8]} 26. e5 {[%clk 0:01:11.8]} 26... Rxe5 {[%clk 0:01:32.9]}
27. Rad1 {[%clk 0:00:44]} 27... Bxc3 {[%clk 0:01:22.1]} 28. Qxc3 {[%clk
0:00:43.2]} 28... Rxe2 {[%clk 0:01:22.2]} 0-1

[Event "*** Titled Tuesday Blitz"]
[Site "Chess.com"]
[Date "2021.02.09"]
[Round "1"]
[White "mbojan"]
[Black "DrMamaliga"]
[Result "1-0"]
[WhiteElo "2647"]
[BlackElo "2334"]
[TimeControl "180+1"]
[EndTime "10:05:50 PST"]
[Termination "mbojan won by resignation"]

1. e4 {[%clk 0:03:00.9]} 1... e5 {[%clk 0:02:57.4]} 2. d3 {[%clk 0:02:58.5]}
2... g6 {[%clk 0:02:43.9]} 3. h4 {[%clk 0:02:57.3]} 3... h5 {[%clk 0:02:43]} 4.
Nd2 {[%clk 0:02:56]} 4... Bg7 {[%clk 0:02:43.2]} 5. Nh3 {[%clk 0:02:54.2]} 5...
Ne7 {[%clk 0:02:43.1]} 6. Nc4 {[%clk 0:02:47.7]} 6... d5 {[%clk 0:02:40.8]} 7.
exd5 {[%clk 0:02:47.4]} 7... Qxd5 {[%clk 0:02:41.7]} 8. Ng5 {[%clk 0:02:32]}
8... O-O {[%clk 0:02:33.4]} 9. Be2 {[%clk 0:02:22.7]} 9... Nbc6 {[%clk
0:02:20.7]} 10. Bf3 {[%clk 0:02:22.2]} 10... Qd8 {[%clk 0:02:17.8]} 11. Be3
{[%clk 0:02:20]} 11... Nd4 {[%clk 0:01:58.5]} 12. Bxd4 {[%clk 0:02:18.6]} 12...
Qxd4 {[%clk 0:01:59.3]} 13. c3 {[%clk 0:02:17.9]} 13... Qd8 {[%clk 0:01:43.1]}
14. Qe2 {[%clk 0:02:17.5]} 14... f6 {[%clk 0:01:34.7]} 15. Ne4 {[%clk
0:02:15.7]} 15... Be6 {[%clk 0:01:13.6]} 16. Rd1 {[%clk 0:02:14.2]} 16... Bxc4
{[%clk 0:01:12]} 17. dxc4 {[%clk 0:02:14]} 17... Qe8 {[%clk 0:01:12.7]} 18. Nc5
{[%clk 0:02:12.8]} 18... Qf7 {[%clk 0:01:08.4]} 19. Bxb7 {[%clk 0:02:08.5]}
19... Rab8 {[%clk 0:01:06.7]} 20. Bd5 {[%clk 0:02:06.8]} 20... Nxd5 {[%clk
0:01:06.6]} 21. cxd5 {[%clk 0:02:07.6]} 21... Qe7 {[%clk 0:01:04]} 22. Ne6
{[%clk 0:02:05.3]} 22... Rfe8 {[%clk 0:01:02.6]} 23. O-O {[%clk 0:01:58.2]}
23... Bh6 {[%clk 0:01:01.9]} 24. Qe4 {[%clk 0:01:40.5]} 24... Kf7 {[%clk
0:00:56.7]} 25. b3 {[%clk 0:01:38.1]} 25... Qd6 {[%clk 0:00:49.1]} 26. Rfe1
{[%clk 0:01:31.6]} 26... c6 {[%clk 0:00:46.3]} 27. c4 {[%clk 0:01:26.4]} 27...
cxd5 {[%clk 0:00:46.6]} 28. cxd5 {[%clk 0:01:27.3]} 28... Rec8 {[%clk
0:00:46.9]} 29. Rd3 {[%clk 0:01:24.2]} 29... Rc1 {[%clk 0:00:31.7]} 30. Rxc1
{[%clk 0:01:23.1]} 30... Bxc1 {[%clk 0:00:32.6]} 31. Rc3 {[%clk 0:01:18.4]}
31... Bd2 {[%clk 0:00:27.3]} 32. Rc7+ {[%clk 0:01:15.4]} 1-0

[Event "*** Titled Tuesday Blitz"]
[Site "Chess.com"]
[Date "2021.02.09"]
[Round "1"]
[White "Sviridov_Valery"]
[Black "2nd_life"]
[Result "1-0"]
[WhiteElo "2973"]
[BlackElo "2460"]
[TimeControl "180+1"]
[EndTime "10:05:51 PST"]
[Termination "Sviridov_Valery won by resignation"]

1. Nf3 {[%clk 0:03:00.7]} 1... Nf6 {[%clk 0:02:58.7]} 2. g3 {[%clk 0:02:58.9]}
2... d5 {[%clk 0:02:58.6]} 3. Bg2 {[%clk 0:02:58.3]} 3... c6 {[%clk 0:02:59]} 4.
O-O {[%clk 0:02:55.7]} 4... Bg4 {[%clk 0:02:59.3]} 5. d4 {[%clk 0:02:54.9]} 5...
Nbd7 {[%clk 0:02:53.6]} 6. Nbd2 {[%clk 0:02:53.9]} 6... e6 {[%clk 0:02:51.9]} 7.
Re1 {[%clk 0:02:49.2]} 7... Be7 {[%clk 0:02:49.4]} 8. e4 {[%clk 0:02:49.3]} 8...
O-O {[%clk 0:02:48.4]} 9. c3 {[%clk 0:02:49.2]} 9... Bh5 {[%clk 0:02:46.4]} 10.
a4 {[%clk 0:02:48.4]} 10... a6 {[%clk 0:02:26]} 11. a5 {[%clk 0:02:47.5]} 11...
c5 {[%clk 0:02:07]} 12. exd5 {[%clk 0:02:45.3]} 12... exd5 {[%clk 0:01:59.9]}
13. dxc5 {[%clk 0:02:38.5]} 13... Nxc5 {[%clk 0:01:57.2]} 14. Nb3 {[%clk
0:02:38]} 14... Nce4 {[%clk 0:01:54.7]} 15. Be3 {[%clk 0:02:36.5]} 15... Qd7
{[%clk 0:01:43.5]} 16. Nbd4 {[%clk 0:02:24.6]} 16... Ng4 {[%clk 0:01:25.9]} 17.
Ne5 {[%clk 0:02:24.6]} 17... Nxe5 {[%clk 0:01:20.5]} 18. Qxh5 {[%clk 0:02:24.6]}
18... Nd3 {[%clk 0:01:11]} 19. Re2 {[%clk 0:02:18.1]} 19... g6 {[%clk
0:01:04.9]} 20. Qh3 {[%clk 0:02:17.2]} 20... f5 {[%clk 0:00:58.9]} 21. Rd1
{[%clk 0:02:01.8]} 21... Ne5 {[%clk 0:00:58.6]} 22. Bf4 {[%clk 0:01:56.1]} 22...
Nc4 {[%clk 0:00:49.7]} 23. Rde1 {[%clk 0:01:33.9]} 23... Bc5 {[%clk 0:00:40.7]}
24. b4 {[%clk 0:01:30.8]} 24... Bd6 {[%clk 0:00:30]} 25. Bxe4 {[%clk 0:01:24.1]}
25... dxe4 {[%clk 0:00:22.7]} 26. Rxe4 {[%clk 0:01:23.8]} 26... Rad8 {[%clk
0:00:17.8]} 27. Re6 {[%clk 0:01:20.9]} 27... Bxf4 {[%clk 0:00:16]} 28. Re7
{[%clk 0:01:20.9]} 1-0

[Event "*** Titled Tuesday Blitz"]
[Site "Chess.com"]
[Date "2021.02.09"]
[Round "1"]
[White "Srisshhhtea"]
[Black "YIYUKI"]
[Result "1-0"]
[WhiteElo "2508"]
[BlackElo "2168"]
[TimeControl "180+1"]
[EndTime "10:05:52 PST"]
[Termination "Srisshhhtea won by resignation"]

1. d4 {[%clk 0:03:00.9]} 1... Nf6 {[%clk 0:02:59.2]} 2. c4 {[%clk 0:03:01.4]}
2... e6 {[%clk 0:02:59.3]} 3. Nf3 {[%clk 0:03:01.4]} 3... Bb4+ {[%clk
0:02:57.8]} 4. Bd2 {[%clk 0:03:00.9]} 4... Qe7 {[%clk 0:02:57.7]} 5. g3 {[%clk
0:03:00.5]} 5... Nc6 {[%clk 0:02:57.3]} 6. Nc3 {[%clk 0:02:58]} 6... Bxc3 {[%clk
0:02:51.2]} 7. Bxc3 {[%clk 0:02:57.5]} 7... Ne4 {[%clk 0:02:50.5]} 8. Qc2 {[%clk
0:02:54.8]} 8... Nxc3 {[%clk 0:02:50.1]} 9. Qxc3 {[%clk 0:02:55.3]} 9... d6
{[%clk 0:02:49.9]} 10. Bg2 {[%clk 0:02:55.4]} 10... O-O {[%clk 0:02:49.1]} 11.
O-O {[%clk 0:02:54.9]} 11... e5 {[%clk 0:02:47.3]} 12. d5 {[%clk 0:02:54.2]}
12... Nb8 {[%clk 0:02:44.7]} 13. e4 {[%clk 0:02:54.7]} 13... a5 {[%clk
0:02:40.6]} 14. b3 {[%clk 0:02:52.7]} 14... Nd7 {[%clk 0:02:39.3]} 15. a3 {[%clk
0:02:49.6]} 15... Nc5 {[%clk 0:02:27.6]} 16. Nd2 {[%clk 0:02:49.6]} 16... Bd7
{[%clk 0:02:24]} 17. b4 {[%clk 0:02:45.2]} 17... axb4 {[%clk 0:02:23.2]} 18.
axb4 {[%clk 0:02:46.1]} 18... Na4 {[%clk 0:02:22.7]} 19. Qc2 {[%clk 0:02:43.4]}
19... b5 {[%clk 0:01:50.6]} 20. Ra3 {[%clk 0:02:31.1]} 20... Rfb8 {[%clk
0:01:30.1]} 21. Rfa1 {[%clk 0:02:28.9]} 21... Nb6 {[%clk 0:01:21.4]} 22. c5
{[%clk 0:02:06.5]} 22... Rxa3 {[%clk 0:01:11.1]} 23. Rxa3 {[%clk 0:02:07.4]}
23... Na4 {[%clk 0:01:11.6]} 24. c6 {[%clk 0:02:05.8]} 24... Bc8 {[%clk
0:01:10.9]} 25. Bf1 {[%clk 0:02:04.7]} 25... f5 {[%clk 0:01:03.7]} 26. exf5
{[%clk 0:02:03.1]} 26... Qg5 {[%clk 0:01:03]} 27. Bd3 {[%clk 0:02:01.1]} 27...
Nb6 {[%clk 0:00:56.4]} 28. Be4 {[%clk 0:01:38]} 28... h5 {[%clk 0:00:51.2]} 29.
Nf3 {[%clk 0:01:37]} 29... Qg4 {[%clk 0:00:50.2]} 30. Ra7 {[%clk 0:01:32.4]}
30... Nc4 {[%clk 0:00:45.3]} 31. Rxc7 {[%clk 0:01:29]} 31... Ra8 {[%clk
0:00:45.4]} 32. Kg2 {[%clk 0:01:21.3]} 32... h4 {[%clk 0:00:36.2]} 33. h3 {[%clk
0:01:16.8]} 33... Qh5 {[%clk 0:00:36.3]} 34. Nxh4 {[%clk 0:01:12.3]} 1-0

[Event "*** Titled Tuesday Blitz"]
[Site "Chess.com"]
[Date "2021.02.09"]
[Round "1"]
[White "FGHSMN"]
[Black "pavelalexandru07"]
[Result "1-0"]
[WhiteElo "2634"]
[BlackElo "2326"]
[TimeControl "180+1"]
[EndTime "10:05:56 PST"]
[Termination "FGHSMN won by resignation"]

1. e4 {[%clk 0:03:00.9]} 1... c5 {[%clk 0:03:00]} 2. Nf3 {[%clk 0:03:00.4]} 2...
d6 {[%clk 0:03:00]} 3. d4 {[%clk 0:03:00.4]} 3... cxd4 {[%clk 0:02:59.9]} 4.
Nxd4 {[%clk 0:03:01.3]} 4... Nf6 {[%clk 0:03:00]} 5. Nc3 {[%clk 0:03:01.6]} 5...
a6 {[%clk 0:03:00.2]} 6. h3 {[%clk 0:03:01.3]} 6... e5 {[%clk 0:02:58.9]} 7. Nb3
{[%clk 0:02:59.6]} 7... h5 {[%clk 0:02:53.1]} 8. Bg5 {[%clk 0:02:55.4]} 8... Be7
{[%clk 0:02:51.7]} 9. Be2 {[%clk 0:02:54.8]} 9... g6 {[%clk 0:02:41.7]} 10. Qd2
{[%clk 0:02:53.3]} 10... Be6 {[%clk 0:02:39.5]} 11. O-O-O {[%clk 0:02:35.4]}
11... Nbd7 {[%clk 0:02:39]} 12. Kb1 {[%clk 0:02:33]} 12... b5 {[%clk 0:02:38]}
13. a3 {[%clk 0:02:24.3]} 13... Rc8 {[%clk 0:02:35.6]} 14. Be3 {[%clk
0:02:17.8]} 14... Nb6 {[%clk 0:02:21.4]} 15. Na5 {[%clk 0:01:58.9]} 15... Qc7
{[%clk 0:02:14.3]} 16. f4 {[%clk 0:01:53.1]} 16... Nc4 {[%clk 0:01:13.9]} 17.
Nxc4 {[%clk 0:01:48.7]} 17... bxc4 {[%clk 0:01:14]} 18. f5 {[%clk 0:01:38.8]}
18... gxf5 {[%clk 0:01:13.2]} 19. exf5 {[%clk 0:01:39.7]} 19... Bxf5 {[%clk
0:01:12.7]} 20. Rhf1 {[%clk 0:01:40.2]} 20... Bg6 {[%clk 0:01:12.8]} 21. Rxf6
{[%clk 0:01:33.2]} 21... Bxf6 {[%clk 0:01:12.9]} 22. Nd5 {[%clk 0:01:33.7]}
22... Qd8 {[%clk 0:01:13.2]} 23. Bb6 {[%clk 0:01:33.7]} 23... Bg5 {[%clk
0:01:07]} 24. Bxd8 {[%clk 0:01:09.4]} 24... Bxd2 {[%clk 0:01:03.3]} 25. Bf6
{[%clk 0:01:10.1]} 25... Rh6 {[%clk 0:00:51.8]} 26. Rxd2 {[%clk 0:01:09]} 26...
Rc5 {[%clk 0:00:26.4]} 27. Bg5 {[%clk 0:01:02]} 1-0